Department Family,Entity,Date Paid,Expense Type,Expense Area,Supplier,Transaction Number,Amount (�),Supplier VAT Registration Number
BEIS,Met Office,2023-04-14,06 ACCOMMODATION,CHIEF FINANCIAL OFFICER,ABOVE THE REST COMMERCIAL CLEANING LTD,478448,565,166969348
BEIS,Met Office,2023-04-25,11 SERVICES,CHIEF FINANCIAL OFFICER,ADT FIRE AND SECURITY PLC,478906,277,413633086
BEIS,Met Office,2023-04-26,SOFTWARE LICENCES,CHIEF FINANCIAL OFFICER,ADVANCED BUSINESS SOLUTIONS LTD,478133,637.5,927547983
BEIS,Met Office,2023-04-19,11 SERVICES,CHIEF FINANCIAL OFFICER,ALLSTAR BUSINESS SOLUTIONS LTD,478757,2269.48,747880191
BEIS,Met Office,2023-04-05,11 SERVICES,CHIEF FINANCIAL OFFICER,ALLSTAR BUSINESS SOLUTIONS LTD,478155,2966.39,747880191
BEIS,Met Office,2023-04-06,06 ACCOMMODATION,CHIEF FINANCIAL OFFICER,ANGLIAN WATER BUSINESS NATIONAL LTD,478211,31.55,51406002
BEIS,Met Office,2023-04-14,11 SERVICES,CHIEF FINANCIAL OFFICER,ANVIL MOBILE LIMITED,478549,161.05,981686175
BEIS,Met Office,2023-04-14,03 STAFF COSTS T&S,CHIEF FINANCIAL OFFICER,APPLE CENTRAL TAXIS,478551,2889,449238720
BEIS,Met Office,2023-04-26,11 SERVICES,CHIEF FINANCIAL OFFICER,Ashfords Llp,479054,500,844502439
BEIS,Met Office,2023-04-14,11 SERVICES,CHIEF FINANCIAL OFFICER,Ashfords Llp,478157,728,844502439
BEIS,Met Office,2023-04-20,11 SERVICES,CHIEF FINANCIAL OFFICER,BABBLE CLOUD LIMITED,478840,929.56,GB206270049
BEIS,Met Office,2023-04-05,13 MISCELLANEOUS,CHIEF FINANCIAL OFFICER,BANNER GROUP LIMITED,478151,26.29,GB391085740
BEIS,Met Office,2023-04-11,13 MISCELLANEOUS,CHIEF FINANCIAL OFFICER,BANNER GROUP LIMITED,478404,29.11,GB391085740
BEIS,Met Office,2023-04-26,13 MISCELLANEOUS,CHIEF FINANCIAL OFFICER,BANNER GROUP LIMITED,478980,48.65,GB391085740
BEIS,Met Office,2023-04-11,13 MISCELLANEOUS,CHIEF FINANCIAL OFFICER,BANNER GROUP LIMITED,478405,54.87,GB391085740
BEIS,Met Office,2023-04-14,06 ACCOMMODATION,CHIEF FINANCIAL OFFICER,Belfast International Airport Ltd,478449,260,617777601
BEIS,Met Office,2023-04-18,06 ACCOMMODATION,CHIEF FINANCIAL OFFICER,Belfast International Airport Ltd,478581,4810.22,617777601
BEIS,Met Office,2023-04-14,06 ACCOMMODATION,CHIEF FINANCIAL OFFICER,Belfast International Airport Ltd,478577,24491.3,617777601
BEIS,Met Office,2023-04-18,06 ACCOMMODATION,CHIEF FINANCIAL OFFICER,BIDVEST NOONAN UK LTD,478596,106.76,GB847176988
BEIS,Met Office,2023-04-25,06 ACCOMMODATION,CHIEF FINANCIAL OFFICER,Biffa Waste Services Ltd,478978,175,537911627
BEIS,Met Office,2023-04-14,06 ACCOMMODATION,CHIEF FINANCIAL OFFICER,BROWN & CO,478115,500,610538078
BEIS,Met Office,2023-04-18,06 ACCOMMODATION,CHIEF FINANCIAL OFFICER,BROXTOWE BOROUGH COUNCIL,478650,13223.5,118033013
BEIS,Met Office,2023-04-14,11 SERVICES,CHIEF FINANCIAL OFFICER,BT CONFERENCING,478466,12,245719348
BEIS,Met Office,2023-04-14,11 SERVICES,CHIEF FINANCIAL OFFICER,BT CONFERENCING,478467,13.63,245719348
BEIS,Met Office,2023-04-21,11 SERVICES,CHIEF FINANCIAL OFFICER,BT GLOBAL SERVICES,478776,782.21,245719348
BEIS,Met Office,2023-04-24,11 SERVICES,CHIEF FINANCIAL OFFICER,BT GLOBAL SERVICES,478489,14270.97,245719348
BEIS,Met Office,2023-04-14,11 SERVICES,CHIEF FINANCIAL OFFICER,BT plc,478301,7150.79,245719348
BEIS,Met Office,2023-04-25,06 ACCOMMODATION,CHIEF FINANCIAL OFFICER,BUSINESS STREAM,478847,215.31,945850885
BEIS,Met Office,2023-04-26,06 ACCOMMODATION,CHIEF FINANCIAL OFFICER,BUSINESS SUPPORT CENTRE LTD,479003,61.05,927365208
BEIS,Met Office,2023-04-05,06 ACCOMMODATION,CHIEF FINANCIAL OFFICER,CALOR GAS LIMITED,478117,1613.81,207610984
BEIS,Met Office,2023-04-06,13 MISCELLANEOUS,CHIEF FINANCIAL OFFICER,CANON UK LTD,478321,1.4,523797128
BEIS,Met Office,2023-04-06,13 MISCELLANEOUS,CHIEF FINANCIAL OFFICER,CANON UK LTD,478321,2.42,523797128
BEIS,Met Office,2023-04-06,13 MISCELLANEOUS,CHIEF FINANCIAL OFFICER,CANON UK LTD,478321,5.64,523797128
BEIS,Met Office,2023-04-06,13 MISCELLANEOUS,CHIEF FINANCIAL OFFICER,CANON UK LTD,478321,7.32,523797128
BEIS,Met Office,2023-04-06,13 MISCELLANEOUS,CHIEF FINANCIAL OFFICER,CANON UK LTD,478321,12.44,523797128
BEIS,Met Office,2023-04-14,13 MISCELLANEOUS,CHIEF FINANCIAL OFFICER,CANON UK LTD,478318,26.34,523797128
BEIS,Met Office,2023-04-06,13 MISCELLANEOUS,CHIEF FINANCIAL OFFICER,CANON UK LTD,478321,33.34,523797128
BEIS,Met Office,2023-04-06,13 MISCELLANEOUS,CHIEF FINANCIAL OFFICER,CANON UK LTD,478321,54.49,523797128
BEIS,Met Office,2023-04-27,13 MISCELLANEOUS,CHIEF FINANCIAL OFFICER,CANON UK LTD,479072,68.54,523797128
BEIS,Met Office,2023-04-06,13 MISCELLANEOUS,CHIEF FINANCIAL OFFICER,CANON UK LTD,478321,699.44,523797128
BEIS,Met Office,2023-04-11,13 MISCELLANEOUS,CHIEF FINANCIAL OFFICER,CANON UK LTD,478320,2469.7,523797128
BEIS,Met Office,2023-04-11,13 MISCELLANEOUS,CHIEF FINANCIAL OFFICER,CANON UK LTD,478316,3035.47,523797128
BEIS,Met Office,2023-04-05,13 MISCELLANEOUS,CHIEF FINANCIAL OFFICER,CARDIFF EXECUTIVE CENTRE LTD,478171,0.94,864497378
BEIS,Met Office,2023-04-14,06 ACCOMMODATION,CHIEF FINANCIAL OFFICER,CARDIFF EXECUTIVE CENTRE LTD,478116,2470,864497378
BEIS,Met Office,2023-04-24,06 ACCOMMODATION,CHIEF FINANCIAL OFFICER,CBRE MANAGED SERVICES LTD,478895,1,853936883
BEIS,Met Office,2023-04-24,06 ACCOMMODATION,CHIEF FINANCIAL OFFICER,CBRE MANAGED SERVICES LTD,478896,1,853936883
BEIS,Met Office,2023-04-24,06 ACCOMMODATION,CHIEF FINANCIAL OFFICER,CBRE MANAGED SERVICES LTD,478892,1949.8,853936883
BEIS,Met Office,2023-04-24,06 ACCOMMODATION,CHIEF FINANCIAL OFFICER,CBRE MANAGED SERVICES LTD,478899,19650.26,853936883
BEIS,Met Office,2023-04-24,06 ACCOMMODATION,CHIEF FINANCIAL OFFICER,CBRE MANAGED SERVICES LTD,478894,19968.34,853936883
BEIS,Met Office,2023-04-24,06 ACCOMMODATION,CHIEF FINANCIAL OFFICER,CBRE MANAGED SERVICES LTD,478893,20011.66,853936883
BEIS,Met Office,2023-04-24,06 ACCOMMODATION,CHIEF FINANCIAL OFFICER,CBRE MANAGED SERVICES LTD,478896,23794.79,853936883
BEIS,Met Office,2023-04-24,PLANT AND EQUIPMENT,CHIEF FINANCIAL OFFICER,CBRE MANAGED SERVICES LTD,478898,25227.2,853936883
BEIS,Met Office,2023-04-24,06 ACCOMMODATION,CHIEF FINANCIAL OFFICER,CBRE MANAGED SERVICES LTD,478892,30735.87,853936883
BEIS,Met Office,2023-04-24,06 ACCOMMODATION,CHIEF FINANCIAL OFFICER,CBRE MANAGED SERVICES LTD,478897,51436.13,853936883
BEIS,Met Office,2023-04-25,PLANT AND EQUIPMENT,CHIEF FINANCIAL OFFICER,CBRE MANAGED SERVICES LTD,475884,115789.2,853936883
BEIS,Met Office,2023-04-24,06 ACCOMMODATION,CHIEF FINANCIAL OFFICER,CBRE MANAGED SERVICES LTD,478895,154935.15,853936883
BEIS,Met Office,2023-04-21,08 SOFTWARE LICENCES,CHIEF FINANCIAL OFFICER,CEMAR,478760,850,915042161
BEIS,Met Office,2023-04-04,11 SERVICES,CHIEF FINANCIAL OFFICER,Cipd,478167,1500,756 202 737.
BEIS,Met Office,2023-04-20,06 ACCOMMODATION,CHIEF FINANCIAL OFFICER,Comhairle Nan Eilean Siar,478819,3735,267799485
BEIS,Met Office,2023-04-28,06 ACCOMMODATION,CHIEF FINANCIAL OFFICER,CORNWALL COUNCIL - KERRIER DIVISION,479141,10381.69,-
BEIS,Met Office,2023-04-14,06 ACCOMMODATION,CHIEF FINANCIAL OFFICER,DEPARTMENT OF FINANCE AND PERSONNEL,478365,32248.31,888808059
BEIS,Met Office,2023-04-14,06 ACCOMMODATION,CHIEF FINANCIAL OFFICER,Eden District Council,478299,499,257205566
BEIS,Met Office,2023-04-24,06 ACCOMMODATION,CHIEF FINANCIAL OFFICER,EDF ENERGY CUSTOMERS PLC,478816,-133591.93,523041202
BEIS,Met Office,2023-04-24,06 ACCOMMODATION,CHIEF FINANCIAL OFFICER,EDF ENERGY CUSTOMERS PLC,478813,75103.54,523041202
BEIS,Met Office,2023-04-24,06 ACCOMMODATION,CHIEF FINANCIAL OFFICER,EDF ENERGY CUSTOMERS PLC,478814,88052.09,523041202
BEIS,Met Office,2023-04-24,06 ACCOMMODATION,CHIEF FINANCIAL OFFICER,EDF ENERGY CUSTOMERS PLC,478828,132859.02,523041202
BEIS,Met Office,2023-04-24,06 ACCOMMODATION,CHIEF FINANCIAL OFFICER,EDF ENERGY CUSTOMERS PLC,478815,263547.29,523041202
BEIS,Met Office,2023-04-19,03 STAFF COSTS T&S,CHIEF FINANCIAL OFFICER,ENTERPRISE RENT A CAR UK LTD,478756,947.59,215557314
BEIS,Met Office,2023-04-14,03 STAFF COSTS T&S,CHIEF FINANCIAL OFFICER,ENTERPRISE RENT A CAR UK LTD,478491,1791.92,215557314
BEIS,Met Office,2023-04-25,03 STAFF COSTS T&S,CHIEF FINANCIAL OFFICER,ENTERPRISE RENT A CAR UK LTD,478984,3259.2,215557314
BEIS,Met Office,2023-04-06,03 STAFF COSTS T&S,CHIEF FINANCIAL OFFICER,ENTERPRISE RENT A CAR UK LTD,478203,3695.15,215557314
BEIS,Met Office,2023-04-17,11 SERVICES,CHIEF FINANCIAL OFFICER,EXPONENTIAL-E,478590,258.79,GB798572653
BEIS,Met Office,2023-04-05,11 SERVICES,CHIEF FINANCIAL OFFICER,EXPONENTIAL-E,478227,2256.32,GB798572653
BEIS,Met Office,2023-04-28,11 SERVICES,CHIEF FINANCIAL OFFICER,FCDO SERVICES,479119,12371.11,888848729
BEIS,Met Office,2023-04-14,11 SERVICES,CHIEF FINANCIAL OFFICER,FILTONGATE LIMITED,478568,2275,562 3530 56
BEIS,Met Office,2023-04-14,11 SERVICES,CHIEF FINANCIAL OFFICER,GAMMA BUSINESS COMMUNICATIONS LTD,478591,570.83,823820344
BEIS,Met Office,2023-04-20,11 SERVICES,CHIEF FINANCIAL OFFICER,GB GROUP PLC,478774,114.05,539716218
BEIS,Met Office,2023-04-20,11 SERVICES,CHIEF FINANCIAL OFFICER,GB GROUP PLC,478775,523.65,539716218
BEIS,Met Office,2023-04-14,11 SERVICES,CHIEF FINANCIAL OFFICER,GIBRALTAR NYNEX COMMUNICATIONS LTD,478341,660,NOVAT
BEIS,Met Office,2023-04-20,06 ACCOMMODATION,CHIEF FINANCIAL OFFICER,Glasgow City Council,478823,8416.2,653051560
BEIS,Met Office,2023-04-05,06 ACCOMMODATION,CHIEF FINANCIAL OFFICER,GRS BUILDING SERVICES SOUTH-WEST,478195,1100,-
BEIS,Met Office,2023-04-20,06 ACCOMMODATION,CHIEF FINANCIAL OFFICER,GRS BUILDING SERVICES SOUTH-WEST,478769,4793.58,-
BEIS,Met Office,2023-04-25,06 ACCOMMODATION,CHIEF FINANCIAL OFFICER,Highland Council,478907,1494,663785203
BEIS,Met Office,2023-04-25,06 ACCOMMODATION,CHIEF FINANCIAL OFFICER,Highland Council,478910,1494,663785203
BEIS,Met Office,2023-04-25,06 ACCOMMODATION,CHIEF FINANCIAL OFFICER,Highland Council,478911,1494,663785203
BEIS,Met Office,2023-04-19,11 SERVICES,CHIEF FINANCIAL OFFICER,INTEROUTE COMMUNICATIONS LIMITED,478761,7100,832 7071 39
BEIS,Met Office,2023-04-14,11 SERVICES,CHIEF FINANCIAL OFFICER,JERSEY TELECOM,478570,1293.72,NOTVATREG
BEIS,Met Office,2023-04-04,11 SERVICES,CHIEF FINANCIAL OFFICER,LANDMARK CHAMBERS,478138,3500,-
BEIS,Met Office,2023-04-06,11 SERVICES,CHIEF FINANCIAL OFFICER,LEASEDRIVE RENTAL MANAGEMENT LTD,478302,138.74,733546040
BEIS,Met Office,2023-04-14,06 ACCOMMODATION,CHIEF FINANCIAL OFFICER,LHR BUSINESS SUPPORT CENTRE LTD,478265,421.66,927365404
BEIS,Met Office,2023-04-18,06 ACCOMMODATION,CHIEF FINANCIAL OFFICER,LHR BUSINESS SUPPORT CENTRE LTD,478266,4355.23,927365404
BEIS,Met Office,2023-04-06,11 SERVICES,CHIEF FINANCIAL OFFICER,LICENCE BUREAU LTD,478303,70.95,820219467
BEIS,Met Office,2023-04-27,06 ACCOMMODATION,CHIEF FINANCIAL OFFICER,MACC DEVELOPMENTS LTD,479087,1000,134669201
BEIS,Met Office,2023-04-14,06 ACCOMMODATION,CHIEF FINANCIAL OFFICER,MAPP (PROPERTY MANAGEMENT) LTD,478572,297.6,725900735
BEIS,Met Office,2023-04-06,03 STAFF COSTS T&S,CHIEF FINANCIAL OFFICER,MAWASEM LTD,478342,167550.01,197694731
BEIS,Met Office,2023-04-25,06 ACCOMMODATION,CHIEF FINANCIAL OFFICER,METRIKUS LIMITED,478959,3240,321 8772 02
BEIS,Met Office,2023-04-17,06 ACCOMMODATION,CHIEF FINANCIAL OFFICER,Mitie Landscapes Ltd,478336,-318.68,GB 416 706 654
BEIS,Met Office,2023-04-17,06 ACCOMMODATION,CHIEF FINANCIAL OFFICER,Mitie Landscapes Ltd,478335,-191.61,GB 416 706 654
BEIS,Met Office,2023-04-25,06 ACCOMMODATION,CHIEF FINANCIAL OFFICER,Mitie Landscapes Ltd,478986,1,GB 416 706 654
BEIS,Met Office,2023-04-25,06 ACCOMMODATION,CHIEF FINANCIAL OFFICER,Mitie Landscapes Ltd,478987,1,GB 416 706 654
BEIS,Met Office,2023-04-25,06 ACCOMMODATION,CHIEF FINANCIAL OFFICER,Mitie Landscapes Ltd,478987,611.5,GB 416 706 654
BEIS,Met Office,2023-04-25,06 ACCOMMODATION,CHIEF FINANCIAL OFFICER,Mitie Landscapes Ltd,478986,6236.9,GB 416 706 654
BEIS,Met Office,2023-04-18,06 ACCOMMODATION,CHIEF FINANCIAL OFFICER,Mitie Landscapes Ltd,477368,6815.38,GB 416 706 654
BEIS,Met Office,2023-04-17,06 ACCOMMODATION,CHIEF FINANCIAL OFFICER,Mitie Landscapes Ltd,477369,6815.38,GB 416 706 654
BEIS,Met Office,2023-04-17,06 ACCOMMODATION,CHIEF FINANCIAL OFFICER,Mitie Landscapes Ltd,477370,6815.38,GB 416 706 654
BEIS,Met Office,2023-04-18,06 ACCOMMODATION,CHIEF FINANCIAL OFFICER,Mitie Landscapes Ltd,478333,6815.38,GB 416 706 654
BEIS,Met Office,2023-04-11,06 ACCOMMODATION,CHIEF FINANCIAL OFFICER,Mitie Landscapes Ltd,478334,6815.38,GB 416 706 654
BEIS,Met Office,2023-04-11,06 ACCOMMODATION,CHIEF FINANCIAL OFFICER,MITIE SECURITY LTD,478355,967.5,416706654
BEIS,Met Office,2023-04-11,11 SERVICES,CHIEF FINANCIAL OFFICER,MITIE SECURITY LTD,478356,1369.59,416706654
BEIS,Met Office,2023-04-19,11 SERVICES,CHIEF FINANCIAL OFFICER,MITIE SECURITY LTD,478444,4037.5,416706654
BEIS,Met Office,2023-04-19,11 SERVICES,CHIEF FINANCIAL OFFICER,MITIE SECURITY LTD,478444,6353,416706654
BEIS,Met Office,2023-04-19,11 SERVICES,CHIEF FINANCIAL OFFICER,MITIE SECURITY LTD,478445,20780.59,416706654
BEIS,Met Office,2023-04-05,06 ACCOMMODATION,CHIEF FINANCIAL OFFICER,MORAY COUNCIL,478169,427.05,663755506
BEIS,Met Office,2023-04-11,06 ACCOMMODATION,CHIEF FINANCIAL OFFICER,MORAY COUNCIL,478402,1291.98,663755506
BEIS,Met Office,2023-04-20,06 ACCOMMODATION,CHIEF FINANCIAL OFFICER,MORAY COUNCIL,478817,1593.6,663755506
BEIS,Met Office,2023-04-20,06 ACCOMMODATION,CHIEF FINANCIAL OFFICER,MORAY COUNCIL,478818,1792.8,663755506
BEIS,Met Office,2023-04-19,06 ACCOMMODATION,CHIEF FINANCIAL OFFICER,MORAY COUNCIL,478759,3112.5,663755506
BEIS,Met Office,2023-04-17,11 SERVICES,CHIEF FINANCIAL OFFICER,Morton Fraser LLP,478651,75,269129336
BEIS,Met Office,2023-04-14,06 ACCOMMODATION,CHIEF FINANCIAL OFFICER,MOUNT CHARLES GROUP LTD,478580,576.36,517116274
BEIS,Met Office,2023-04-05,11 SERVICES,CHIEF FINANCIAL OFFICER,NEOS NETWORKS LTD,478209,1167.75,553769603
BEIS,Met Office,2023-04-05,13 MISCELLANEOUS,CHIEF FINANCIAL OFFICER,NORSCOTT VENDING SERVICES LTD,478170,85,751402071
BEIS,Met Office,2023-04-06,11 SERVICES,CHIEF FINANCIAL OFFICER,OPEN TEXT UK LTD,478200,100,837871308
BEIS,Met Office,2023-04-06,11 SERVICES,CHIEF FINANCIAL OFFICER,POSTURITE (UK) LTD,478173,54.56,583565114
BEIS,Met Office,2023-04-06,11 SERVICES,CHIEF FINANCIAL OFFICER,POSTURITE (UK) LTD,478037,62.95,583565114
BEIS,Met Office,2023-04-19,11 SERVICES,CHIEF FINANCIAL OFFICER,POSTURITE (UK) LTD,478264,685.67,583565114
BEIS,Met Office,2023-04-06,11 SERVICES,CHIEF FINANCIAL OFFICER,POSTURITE (UK) LTD,478188,734.65,583565114
BEIS,Met Office,2023-04-25,06 ACCOMMODATION,CHIEF FINANCIAL OFFICER,POWER NI ENERGY LTD,478908,340.24,617518142
BEIS,Met Office,2023-04-06,06 ACCOMMODATION,CHIEF FINANCIAL OFFICER,POWER NI ENERGY LTD,478210,1049.64,617518142
BEIS,Met Office,2023-04-19,06 ACCOMMODATION,CHIEF FINANCIAL OFFICER,REDACTED � PERSONAL DATA,478139,520,-
BEIS,Met Office,2023-04-14,11 SERVICES,CHIEF FINANCIAL OFFICER,REDACTED � PERSONAL DATA,478602,720,-
BEIS,Met Office,2023-04-11,11 SERVICES,CHIEF FINANCIAL OFFICER,Reuters Ltd,478204,2370,397000555
BEIS,Met Office,2023-04-11,06 ACCOMMODATION,CHIEF FINANCIAL OFFICER,RIVER RIDGE,478406,146.06,176286083
BEIS,Met Office,2023-04-14,11 SERVICES,CHIEF FINANCIAL OFFICER,SADDLES & PADDLES EXETER LTD,478490,8.24,152264528
BEIS,Met Office,2023-04-14,06 ACCOMMODATION,CHIEF FINANCIAL OFFICER,SAFESTORE LTD,478403,2520.72,722887607
BEIS,Met Office,2023-04-24,06 ACCOMMODATION,CHIEF FINANCIAL OFFICER,Severn Trent Water Ltd,478938,-54.76,486985565
BEIS,Met Office,2023-04-26,06 ACCOMMODATION,CHIEF FINANCIAL OFFICER,Severn Trent Water Ltd,478981,18.26,486985565
BEIS,Met Office,2023-04-24,06 ACCOMMODATION,CHIEF FINANCIAL OFFICER,Severn Trent Water Ltd,478939,225.71,486985565
BEIS,Met Office,2023-04-24,06 ACCOMMODATION,CHIEF FINANCIAL OFFICER,Severn Trent Water Ltd,478936,266.64,486985565
BEIS,Met Office,2023-04-24,06 ACCOMMODATION,CHIEF FINANCIAL OFFICER,Severn Trent Water Ltd,478937,271.1,486985565
BEIS,Met Office,2023-04-26,06 ACCOMMODATION,CHIEF FINANCIAL OFFICER,SHETLAND CLEANING SERVICES,478820,769.57,430028404
BEIS,Met Office,2023-04-26,06 ACCOMMODATION,CHIEF FINANCIAL OFFICER,SHETLAND GRASSCUTTING,478983,2763.85,978367258
BEIS,Met Office,2023-04-25,06 ACCOMMODATION,CHIEF FINANCIAL OFFICER,Shetland Islands Council,478913,125,267858304
BEIS,Met Office,2023-04-25,06 ACCOMMODATION,CHIEF FINANCIAL OFFICER,Shetland Islands Council,478904,129.48,267858304
BEIS,Met Office,2023-04-25,06 ACCOMMODATION,CHIEF FINANCIAL OFFICER,Shetland Islands Council,478905,498,267858304
BEIS,Met Office,2023-04-25,06 ACCOMMODATION,CHIEF FINANCIAL OFFICER,Shetland Islands Council,478912,40369,267858304
BEIS,Met Office,2023-04-20,06 ACCOMMODATION,CHIEF FINANCIAL OFFICER,South West Water Ltd,478638,-491.87,236873674
BEIS,Met Office,2023-04-24,06 ACCOMMODATION,CHIEF FINANCIAL OFFICER,South West Water Ltd,478935,80.12,236873674
BEIS,Met Office,2023-04-20,06 ACCOMMODATION,CHIEF FINANCIAL OFFICER,South West Water Ltd,478822,778.32,236873674
BEIS,Met Office,2023-04-14,06 ACCOMMODATION,CHIEF FINANCIAL OFFICER,South West Water Ltd,478488,823.97,236873674
BEIS,Met Office,2023-04-20,06 ACCOMMODATION,CHIEF FINANCIAL OFFICER,South West Water Ltd,478821,1165.39,236873674
BEIS,Met Office,2023-04-24,06 ACCOMMODATION,CHIEF FINANCIAL OFFICER,South West Water Ltd,478956,1285.56,236873674
BEIS,Met Office,2023-04-24,06 ACCOMMODATION,CHIEF FINANCIAL OFFICER,South West Water Ltd,478932,11137.22,236873674
BEIS,Met Office,2023-04-20,06 ACCOMMODATION,CHIEF FINANCIAL OFFICER,Stirling Council,478826,423.3,663873401
BEIS,Met Office,2023-04-20,06 ACCOMMODATION,CHIEF FINANCIAL OFFICER,Stirling Council,478827,697.2,663873401
BEIS,Met Office,2023-04-14,11 SERVICES,CHIEF FINANCIAL OFFICER,SURE SOUTH ATLANTIC LTD,478595,770,-
BEIS,Met Office,2023-04-18,11 SERVICES,CHIEF FINANCIAL OFFICER,SURE SOUTH ATLANTIC LTD,478641,785.4,-
BEIS,Met Office,2023-04-20,11 SERVICES,CHIEF FINANCIAL OFFICER,SURE SOUTH ATLANTIC LTD,478824,2041.8,NOVATREG
BEIS,Met Office,2023-04-14,11 SERVICES,CHIEF FINANCIAL OFFICER,SURE SOUTH ATLANTIC LTD,478594,4793,-
BEIS,Met Office,2023-04-18,11 SERVICES,CHIEF FINANCIAL OFFICER,SURE SOUTH ATLANTIC LTD,478640,4888.86,-
BEIS,Met Office,2023-04-19,11 SERVICES,CHIEF FINANCIAL OFFICER,SURE SOUTH ATLANTIC LTD (ST HELENA),478754,1413.5,30005
BEIS,Met Office,2023-04-26,11 SERVICES,CHIEF FINANCIAL OFFICER,SWISSCOM (SCHWEIZ) AG,478360,97.48,-
BEIS,Met Office,2023-04-14,11 SERVICES,CHIEF FINANCIAL OFFICER,TELEFONICA O2 UK LIMITED,478492,3491.82,778603785
BEIS,Met Office,2023-04-11,06 ACCOMMODATION,CHIEF FINANCIAL OFFICER,TENNIE FACILITIES PROPERTY MANAGEMENT LTD,478276,207.15,982055803
BEIS,Met Office,2023-04-25,06 ACCOMMODATION,CHIEF FINANCIAL OFFICER,TOP RANK CLEANING SERVICES LTD,478268,914,-
BEIS,Met Office,2023-04-24,06 ACCOMMODATION,CHIEF FINANCIAL OFFICER,TOTAL GAS & POWER LIMITED,478348,-17652.77,689638949
BEIS,Met Office,2023-04-24,06 ACCOMMODATION,CHIEF FINANCIAL OFFICER,TOTAL GAS & POWER LIMITED,478901,438.41,689638949
BEIS,Met Office,2023-04-24,06 ACCOMMODATION,CHIEF FINANCIAL OFFICER,TOTAL GAS & POWER LIMITED,478349,17652.77,689638949
BEIS,Met Office,2023-04-24,06 ACCOMMODATION,CHIEF FINANCIAL OFFICER,TOTAL GAS & POWER LIMITED,478902,19466.1,689638949
BEIS,Met Office,2023-04-28,06 ACCOMMODATION,CHIEF FINANCIAL OFFICER,TOTAL GAS & POWER LIMITED,479004,19904.51,689638949
BEIS,Met Office,2023-04-17,11 SERVICES,CHIEF FINANCIAL OFFICER,UK CONNECT LTD,478648,4050,154468983
BEIS,Met Office,2023-04-14,06 ACCOMMODATION,CHIEF FINANCIAL OFFICER,VEOLIA ES UK LIMITED,478589,7424,GB 530 00 88 93
BEIS,Met Office,2023-04-14,11 SERVICES,CHIEF FINANCIAL OFFICER,VIRGIN MEDIA BUSINESS,476840,12796.68,591819014
BEIS,Met Office,2023-04-26,11 SERVICES,CHIEF FINANCIAL OFFICER,VIRGIN MEDIA BUSINESS,474949,18497.07,591819014
BEIS,Met Office,2023-04-26,11 SERVICES,CHIEF FINANCIAL OFFICER,VIRGIN MEDIA BUSINESS,473985,19997.5,591819014
BEIS,Met Office,2023-04-26,11 SERVICES,CHIEF FINANCIAL OFFICER,VIRGIN MEDIA BUSINESS,471863,38226.5,591819014
BEIS,Met Office,2023-04-25,11 SERVICES,CHIEF FINANCIAL OFFICER,Vodafone Ltd,478923,370.2,569953277
BEIS,Met Office,2023-04-14,06 ACCOMMODATION,CHIEF FINANCIAL OFFICER,Welsh Government,478274,750,GD 8888 350 56
BEIS,Met Office,2023-04-14,06 ACCOMMODATION,CHIEF FINANCIAL OFFICER,WEST LANCASHIRE BOROUGH COUNCIL,478439,138.77,-
BEIS,Met Office,2023-04-27,11 SERVICES,CHIEF FINANCIAL OFFICER,WOMBLE BOND DICKINSON (UK) LLP,479082,1875,GB123393627
BEIS,Met Office,2023-04-26,11 SERVICES,CHIEF FINANCIAL OFFICER,WOMBLE BOND DICKINSON (UK) LLP,478919,3264,GB123393627
BEIS,Met Office,2023-04-11,11 SERVICES,CHIEF FINANCIAL OFFICER,WOMBLE BOND DICKINSON (UK) LLP,478307,8625,GB123393627
BEIS,Met Office,2023-04-27,11 SERVICES,CHIEF FINANCIAL OFFICER,WOMBLE BOND DICKINSON (UK) LLP,479081,11900,GB123393627
BEIS,Met Office,2023-04-19,11 SERVICES,CHIEF FINANCIAL OFFICER,WT CONSULTANCY (SW) LTD,478250,5425,223 4662 25
BEIS,Met Office,2023-04-14,11 SERVICES,MARKETS,ACCELERATION EMARKETING,478583,4274.32,848940776
BEIS,Met Office,2023-04-17,11 SERVICES,MARKETS,ADOPSTAR,478135,1250,115036848
BEIS,Met Office,2023-04-21,11 SERVICES,MARKETS,APPLIED SATELLITE TECHNOLOGY SYSTEMS LTD,478777,9.11,720108683
BEIS,Met Office,2023-04-20,12 INTERNATIONAL,MARKETS,APPLIED SATELLITE TECHNOLOGY SYSTEMS LTD,478783,18.47,720108683
BEIS,Met Office,2023-04-12,12 INTERNATIONAL,MARKETS,APPLIED SATELLITE TECHNOLOGY SYSTEMS LTD,476672,34.23,720108683
BEIS,Met Office,2023-04-17,12 INTERNATIONAL,MARKETS,APPLIED SATELLITE TECHNOLOGY SYSTEMS LTD,478606,34.64,720108683
BEIS,Met Office,2023-04-17,11 SERVICES,MARKETS,APPLIED SATELLITE TECHNOLOGY SYSTEMS LTD,478603,69.28,720108683
BEIS,Met Office,2023-04-17,11 SERVICES,MARKETS,APPLIED SATELLITE TECHNOLOGY SYSTEMS LTD,478598,237.37,720108683
BEIS,Met Office,2023-04-06,11 SERVICES,MARKETS,ARAMARK LIMITED,478124,197.4,GB 168 9515 18
BEIS,Met Office,2023-04-06,11 SERVICES,MARKETS,ARAMARK LIMITED,478124,197.4,GB 168 9515 18
BEIS,Met Office,2023-04-19,11 SERVICES,MARKETS,ASAM E.V.,24753,87.8,DE201282 629
BEIS,Met Office,2023-04-26,REVENUE,MARKETS,Barcelona Supercomputing Center,24741,39599.72,ESS0800099D
BEIS,Met Office,2023-04-14,11 SERVICES,MARKETS,BJSS LIMITED,478453,1218.75,613295452
BEIS,Met Office,2023-04-27,11 SERVICES,MARKETS,BMG RESEARCH LTD,479098,-8695,580 6606 32
BEIS,Met Office,2023-04-27,11 SERVICES,MARKETS,BMG RESEARCH LTD,475590,8695,580 6606 32
BEIS,Met Office,2023-04-27,11 SERVICES,MARKETS,BMG RESEARCH LTD,479097,8695,580 6606 32
BEIS,Met Office,2023-04-26,11 SERVICES,MARKETS,BRYERS LLP,479027,221.77,609635917
BEIS,Met Office,2023-04-05,11 SERVICES,MARKETS,BRYERS LLP,478072,968,609635917
BEIS,Met Office,2023-04-11,11 SERVICES,MARKETS,CLAREMONT MARKETING COMMUNICATIONS LTD,478353,28970,429442584
BEIS,Met Office,2023-04-11,11 SERVICES,MARKETS,CNR - CONSIGLIO NAZIONALE DELLE RICERCHE,24707,30968.47,VAT 02118311006
BEIS,Met Office,2023-04-24,12 INTERNATIONAL,MARKETS,CROWN AGENTS BANK,478933,13230.16,-
BEIS,Met Office,2023-04-26,REVENUE,MARKETS,DEUTSCHES ZENTRUM FUER LUFT UND RAUMFAHRT EV,24772,4803.18,DE121965658
BEIS,Met Office,2023-04-04,11 SERVICES,MARKETS,Esri (Uk) Ltd,478162,2842.33,787430791
BEIS,Met Office,2023-04-04,11 SERVICES,MARKETS,Esri (Uk) Ltd,478191,4014,787430791
BEIS,Met Office,2023-04-04,11 SERVICES,MARKETS,ESTELLUS  S.A.S.,24708,19122.68,FR 48514112234
BEIS,Met Office,2023-04-26,12 INTERNATIONAL,MARKETS,EUMETNET - EIG,24607,955589.75,-
BEIS,Met Office,2023-04-05,12 INTERNATIONAL,MARKETS,FOXSTONES TRAINING AND LEARNING,478102,2950,-
BEIS,Met Office,2023-04-14,06 ACCOMMODATION,MARKETS,Hartlepool Borough Council,478278,35,259087918
BEIS,Met Office,2023-04-14,06 ACCOMMODATION,MARKETS,Hartlepool Borough Council,478278,50,259087918
BEIS,Met Office,2023-04-14,06 ACCOMMODATION,MARKETS,HIGHLANDS & ISLANDS AIRPORTS LTD.,478166,161.82,945667772
BEIS,Met Office,2023-04-11,11 SERVICES,MARKETS,"IBL SOFTWARE ENGINEERING, SPOL S.R.O.",24706,7406.85,SK2020241883
BEIS,Met Office,2023-04-26,11 SERVICES,MARKETS,"IBL SOFTWARE ENGINEERING, SPOL S.R.O.",24407,14169.8,SK2020241883
BEIS,Met Office,2023-04-06,12 INTERNATIONAL,MARKETS,IDEMS INTERNATIONAL COMMUNITY INTEREST CO,478347,2500,-
BEIS,Met Office,2023-04-04,11 SERVICES,MARKETS,IO ANALYTICS,478131,2800,-
BEIS,Met Office,2023-04-11,12 INTERNATIONAL,MARKETS,MACITECHSY SOLUTIONS,478257,640,-
BEIS,Met Office,2023-04-04,11 SERVICES,MARKETS,MAGPIE CREATIVE COMMUNICATIONS,478110,7000,117332539
BEIS,Met Office,2023-04-04,REVENUE,MARKETS,MAX-PLANCK INSTITUT FUR METEOROLOGIE,24736,35297.31,DE129517720
BEIS,Met Office,2023-04-04,11 SERVICES,MARKETS,MERCATOR OCEAN INTERNATIONAL,24735,21073.02,-
BEIS,Met Office,2023-04-11,11 SERVICES,MARKETS,SAS OCEAN DATA LAB,24714,7790.72,FR51 792 395 92
BEIS,Met Office,2023-04-11,06 ACCOMMODATION,MARKETS,SCOTTISH HYDRO-ELECTRIC,478279,188.05,553769603
BEIS,Met Office,2023-04-17,03 STAFF COSTS T&S,MARKETS,SOLOMON & COMPANY (ST HELENA) PLC,478645,331,-
BEIS,Met Office,2023-04-06,11 SERVICES,MARKETS,SPOKE (INTERACTIVE) LTD,478306,700,840156451
BEIS,Met Office,2023-04-19,12 INTERNATIONAL,MARKETS,SWANTECH LOGISTICS LTD,478456,569,769332401
BEIS,Met Office,2023-04-14,11 SERVICES,MARKETS,SWANTECH LOGISTICS LTD,478345,960,769332401
BEIS,Met Office,2023-04-14,11 SERVICES,MARKETS,SWANTECH LOGISTICS LTD,478346,1920,769332401
BEIS,Met Office,2023-04-04,11 SERVICES,MARKETS,UK CENTRE FOR ECOLOGY & HYDROLOGY (UKCEH),478128,20000,336940192
BEIS,Met Office,2023-04-04,REVENUE,MARKETS,UKRI,24339,10401.56,GB287461957
BEIS,Met Office,2023-04-11,11 SERVICES,MARKETS,ULTRA ELECTRONICS LTD NUCLEAR CONTROL SYSTEMS,476955,4926.81,123340754
BEIS,Met Office,2023-04-11,11 SERVICES,MARKETS,ULTRA ELECTRONICS LTD NUCLEAR CONTROL SYSTEMS,478187,4926.81,123340754
BEIS,Met Office,2023-04-28,11 SERVICES,MARKETS,ULTRA ELECTRONICS LTD NUCLEAR CONTROL SYSTEMS,479124,241567.46,123340754
BEIS,Met Office,2023-04-14,11 SERVICES,MARKETS,WORLDPAY (UK) LTD,478571,704.95,991280207
BEIS,Met Office,2023-04-06,11 SERVICES,MARKETS,WORLDPAY LTD,478194,29.25,991280207
BEIS,Met Office,2023-04-14,11 SERVICES,OFFICE OF THE CEO,PDP COMPANIES,478576,1150,GB991242805
BEIS,Met Office,2023-04-27,11 SERVICES,OFFICE OF THE CEO,ST GEORGE'S HOUSE TRUST,479080,745,727 4336 29
BEIS,Met Office,2023-04-19,11 SERVICES,OTHER,BARBOUR ENVIRONMENTAL AND HEALTH AND SAFETY,478609,5000,-
BEIS,Met Office,2023-04-26,CYCLESCHEME,OTHER,EDENRED EB (SHOPPING VOUCHERS),478958,1722.64,649 503 520
BEIS,Met Office,2023-04-21,CYCLESCHEME,OTHER,EDENRED EB (SHOPPING VOUCHERS),478846,1724,649 503 520
BEIS,Met Office,2023-04-14,CYCLESCHEME,OTHER,EDENRED UK (CYCLESCHEME),478446,2878.4,649 503 520
BEIS,Met Office,2023-04-26,PAYE AND VAT,OTHER,HMRC,479066,7547324.74,-
BEIS,Met Office,2023-04-24,TRADE CREDITORS,OTHER,NATWEST COMMERCIAL CARDS DIVISION,478863,187841.73,N/A
BEIS,Met Office,2023-04-03,11 SERVICES,PEOPLE,ACTIVE LEARNING TEAM LTD,477992,2800,-
BEIS,Met Office,2023-04-14,11 SERVICES,PEOPLE,BRIGHTCOVE INC,477873,78567,TAX 20-1579162
BEIS,Met Office,2023-04-06,13 MISCELLANEOUS,PEOPLE,BROADBEAN TECHNOLOGY LTD,478198,682.11,GB184088778
BEIS,Met Office,2023-04-06,13 MISCELLANEOUS,PEOPLE,BROADBEAN TECHNOLOGY LTD,478197,980.1,GB184088778
BEIS,Met Office,2023-04-05,13 MISCELLANEOUS,PEOPLE,BROADBEAN TECHNOLOGY LTD,478199,71022.93,GB184088778
BEIS,Met Office,2023-04-14,13 MISCELLANEOUS,PEOPLE,CABINET OFFICE - COF LEAD ACCOUNT,478567,19676.4,-
BEIS,Met Office,2023-04-04,08 SOFTWARE LICENCES,PEOPLE,CATALYST IT,478161,1740.83,978169262
BEIS,Met Office,2023-04-04,11 SERVICES,PEOPLE,Cipd,478167,10500,756 202 737.
BEIS,Met Office,2023-04-27,08 SOFTWARE LICENCES,PEOPLE,CIPHR,479079,7875,242661124
BEIS,Met Office,2023-04-03,11 SERVICES,PEOPLE,CIVICA UK LIMITED,478107,1499,391171065
BEIS,Met Office,2023-04-05,11 SERVICES,PEOPLE,CIVICA UK LIMITED,477967,7503.5,391171065
BEIS,Met Office,2023-04-06,11 SERVICES,PEOPLE,CIVICA UK LIMITED,478352,7503.5,391171065
BEIS,Met Office,2023-04-14,13 MISCELLANEOUS,PEOPLE,EDENRED - CHILDCARE VOUCHERS,477898,-100,649 503 520
BEIS,Met Office,2023-04-14,13 MISCELLANEOUS,PEOPLE,EDENRED - CHILDCARE VOUCHERS,478550,9091.5,649 503 520
BEIS,Met Office,2023-04-28,13 MISCELLANEOUS,PEOPLE,EDENRED I&M (IRS VOUCHERS),478940,0,649 503 520
BEIS,Met Office,2023-04-28,13 MISCELLANEOUS,PEOPLE,EDENRED I&M (IRS VOUCHERS),478940,80768.7,649 503 520
BEIS,Met Office,2023-04-05,13 MISCELLANEOUS,PEOPLE,EVENBREAK,478208,8100,175722982
BEIS,Met Office,2023-04-06,11 SERVICES,PEOPLE,HEALTH ASSURED LIMITED,478256,1120,927 5242 17
BEIS,Met Office,2023-04-18,11 SERVICES,PEOPLE,KORN FERRY HAY GROUP LTD,478277,10348.31,GB 539135439
BEIS,Met Office,2023-04-20,13 MISCELLANEOUS,PEOPLE,LNRS DATA SERVICES LTD,478838,11595.52,730859520
BEIS,Met Office,2023-04-14,11 SERVICES,PEOPLE,LUMESSE LTD,478450,1274.61,266385668
BEIS,Met Office,2023-04-14,04 CONTRACTORS,PEOPLE,MATRIX SCM LIMITED,478564,133538.11,249 5734 68
BEIS,Met Office,2023-04-20,04 CONTRACTORS,PEOPLE,MATRIX SCM LIMITED,478831,145158.72,249 5734 68
BEIS,Met Office,2023-04-06,04 CONTRACTORS,PEOPLE,MATRIX SCM LIMITED,478305,264224.86,249 5734 68
BEIS,Met Office,2023-04-28,11 SERVICES,PEOPLE,MOMENTUM INCORPORATED,479088,13320,598958541
BEIS,Met Office,2023-04-14,11 SERVICES,PEOPLE,PARAGON CUSTOMER COMMUNICATIONS (LONDON) LTD,478136,10000,100130213
BEIS,Met Office,2023-04-14,08 SOFTWARE LICENCES,PEOPLE,POWTOON LIMITED,478597,6640,GB 202 866 029
BEIS,Met Office,2023-04-14,11 SERVICES,PEOPLE,REDACTED � PERSONAL DATA,478443,825,143043312
BEIS,Met Office,2023-04-11,11 SERVICES,PEOPLE,REDACTED � PERSONAL DATA,478442,869,143043312
BEIS,Met Office,2023-04-14,11 SERVICES,PEOPLE,REDACTED � PERSONAL DATA,478441,10314.66,143043312
BEIS,Met Office,2023-04-14,11 SERVICES,PEOPLE,RESTORE RECORDS MANAGEMENT,478548,13.18,843 863011
BEIS,Met Office,2023-04-04,11 SERVICES,PEOPLE,RESULTS CATALYSTS LTD,478172,1200,811 9181 42
BEIS,Met Office,2023-04-24,11 SERVICES,PEOPLE,RIPPLE ROCK LTD,478922,5000,GB982 354 301
BEIS,Met Office,2023-04-19,11 SERVICES,PEOPLE,RUNTIME COLLECTIVE LTD T/A BRANDWATCH,477573,84888,754750710
BEIS,Met Office,2023-04-28,11 SERVICES,PEOPLE,SKILLTEC LIMITED,477876,1295,909833105
BEIS,Met Office,2023-04-28,11 SERVICES,PEOPLE,SOURCE COACHING CONSULTANCY,479123,1340,170422048
BEIS,Met Office,2023-04-25,11 SERVICES,PEOPLE,TOTAL CONFLICT MANAGEMENT LTD,478949,12000,786749261
BEIS,Met Office,2023-04-06,11 SERVICES,PEOPLE,TP HEALTH LTD,478253,86.08,883064608
BEIS,Met Office,2023-04-05,11 SERVICES,PEOPLE,TP HEALTH LTD,478156,1253,883064608
BEIS,Met Office,2023-04-11,11 SERVICES,PEOPLE,TP HEALTH LTD,478343,1644,883064608
BEIS,Met Office,2023-04-21,11 SERVICES,PEOPLE,TSG TRAINING LTD,478829,230,GB 279 0047 91
BEIS,Met Office,2023-04-14,13 MISCELLANEOUS,PEOPLE,YOTI LTD,478351,14.4,GB199947617
BEIS,Met Office,2023-04-11,11 SERVICES,PEOPLE,YOUGOV PLC,478153,3775,991228109
BEIS,Met Office,2023-04-14,11 SERVICES,PROGRAMMES,BAE SYSTEMS APPLIED INTELLIGENCE LIMITED,478434,2167.95,GB641407169
BEIS,Met Office,2023-04-14,11 SERVICES,PROGRAMMES,BAE SYSTEMS APPLIED INTELLIGENCE LIMITED,478425,4690,GB641407169
BEIS,Met Office,2023-04-04,11 SERVICES,PROGRAMMES,BAE SYSTEMS APPLIED INTELLIGENCE LIMITED,477228,8043.75,GB641407169
BEIS,Met Office,2023-04-14,11 SERVICES,PROGRAMMES,BAE SYSTEMS APPLIED INTELLIGENCE LIMITED,478423,9956.25,GB641407169
BEIS,Met Office,2023-04-04,11 SERVICES,PROGRAMMES,BAE SYSTEMS APPLIED INTELLIGENCE LIMITED,477228,13777.34,GB641407169
BEIS,Met Office,2023-04-04,11 SERVICES,PROGRAMMES,BAE SYSTEMS APPLIED INTELLIGENCE LIMITED,477228,14070,GB641407169
BEIS,Met Office,2023-04-04,11 SERVICES,PROGRAMMES,BAE SYSTEMS APPLIED INTELLIGENCE LIMITED,477228,17822,GB641407169
BEIS,Met Office,2023-04-04,11 SERVICES,PROGRAMMES,BAE SYSTEMS APPLIED INTELLIGENCE LIMITED,477228,17822,GB641407169
BEIS,Met Office,2023-04-04,11 SERVICES,PROGRAMMES,BAE SYSTEMS APPLIED INTELLIGENCE LIMITED,477228,17822,GB641407169
BEIS,Met Office,2023-04-14,11 SERVICES,PROGRAMMES,BAE SYSTEMS APPLIED INTELLIGENCE LIMITED,478423,17822,GB641407169
BEIS,Met Office,2023-04-14,11 SERVICES,PROGRAMMES,BAE SYSTEMS APPLIED INTELLIGENCE LIMITED,478423,18317.25,GB641407169
BEIS,Met Office,2023-04-04,11 SERVICES,PROGRAMMES,BAE SYSTEMS APPLIED INTELLIGENCE LIMITED,477228,18608,GB641407169
BEIS,Met Office,2023-04-04,11 SERVICES,PROGRAMMES,BAE SYSTEMS APPLIED INTELLIGENCE LIMITED,477228,18760,GB641407169
BEIS,Met Office,2023-04-04,11 SERVICES,PROGRAMMES,BAE SYSTEMS APPLIED INTELLIGENCE LIMITED,477228,18760,GB641407169
BEIS,Met Office,2023-04-14,11 SERVICES,PROGRAMMES,BAE SYSTEMS APPLIED INTELLIGENCE LIMITED,478421,18760,GB641407169
BEIS,Met Office,2023-04-14,11 SERVICES,PROGRAMMES,BAE SYSTEMS APPLIED INTELLIGENCE LIMITED,478423,19463.5,GB641407169
BEIS,Met Office,2023-04-14,11 SERVICES,PROGRAMMES,BAE SYSTEMS APPLIED INTELLIGENCE LIMITED,478423,20518.75,GB641407169
BEIS,Met Office,2023-04-14,11 SERVICES,PROGRAMMES,BAE SYSTEMS APPLIED INTELLIGENCE LIMITED,478423,20636,GB641407169
BEIS,Met Office,2023-04-04,11 SERVICES,PROGRAMMES,BAE SYSTEMS APPLIED INTELLIGENCE LIMITED,477228,20934,GB641407169
BEIS,Met Office,2023-04-14,11 SERVICES,PROGRAMMES,BAE SYSTEMS APPLIED INTELLIGENCE LIMITED,478423,22512,GB641407169
BEIS,Met Office,2023-04-14,11 SERVICES,PROGRAMMES,BAE SYSTEMS APPLIED INTELLIGENCE LIMITED,478423,23157.34,GB641407169
BEIS,Met Office,2023-04-04,11 SERVICES,PROGRAMMES,BAE SYSTEMS APPLIED INTELLIGENCE LIMITED,477228,23260,GB641407169
BEIS,Met Office,2023-04-14,11 SERVICES,PROGRAMMES,BAE SYSTEMS APPLIED INTELLIGENCE LIMITED,478423,23450,GB641407169
BEIS,Met Office,2023-04-14,11 SERVICES,PROGRAMMES,BAE SYSTEMS APPLIED INTELLIGENCE LIMITED,478423,26749,GB641407169
BEIS,Met Office,2023-04-14,11 SERVICES,PROGRAMMES,BAE SYSTEMS APPLIED INTELLIGENCE LIMITED,478422,27912,GB641407169
BEIS,Met Office,2023-04-14,11 SERVICES,PROGRAMMES,BAE SYSTEMS APPLIED INTELLIGENCE LIMITED,478423,27912,GB641407169
BEIS,Met Office,2023-04-14,11 SERVICES,PROGRAMMES,BAE SYSTEMS APPLIED INTELLIGENCE LIMITED,478424,35300,GB641407169
BEIS,Met Office,2023-04-14,11 SERVICES,PROGRAMMES,BJSS LIMITED,478496,900,613295452
BEIS,Met Office,2023-04-14,11 SERVICES,PROGRAMMES,BJSS LIMITED,478454,3125,613295452
BEIS,Met Office,2023-04-11,11 SERVICES,PROGRAMMES,BJSS LIMITED,478452,7750,613295452
BEIS,Met Office,2023-04-14,11 SERVICES,PROGRAMMES,BJSS LIMITED,478532,73983.75,613295452
BEIS,Met Office,2023-04-14,11 SERVICES,PROGRAMMES,BJSS LIMITED,478495,116012.5,613295452
BEIS,Met Office,2023-04-04,11 SERVICES,PROGRAMMES,CENTRE R�GIONAL AGRHYMET,477995,43000,-
BEIS,Met Office,2023-04-18,11 SERVICES,PROGRAMMES,Cgi It Uk Limited,478546,30287,232615194
BEIS,Met Office,2023-04-18,11 SERVICES,PROGRAMMES,Cgi It Uk Limited,478545,38642,232615194
BEIS,Met Office,2023-04-18,11 SERVICES,PROGRAMMES,Cgi It Uk Limited,478547,70046,232615194
BEIS,Met Office,2023-04-11,13 MISCELLANEOUS,PROGRAMMES,DESIGNAMITE LTD,477972,2087.56,817819989
BEIS,Met Office,2023-04-04,11 SERVICES,PROGRAMMES,Esri (Uk) Ltd,478189,13145.93,787430791
BEIS,Met Office,2023-04-04,11 SERVICES,PROGRAMMES,Esri (Uk) Ltd,478192,13452.93,787430791
BEIS,Met Office,2023-04-26,11 SERVICES,PROGRAMMES,FCDO,479055,2225.3,888813560
BEIS,Met Office,2023-04-26,11 SERVICES,PROGRAMMES,FCDO,478841,4856.73,888813560
BEIS,Met Office,2023-04-11,11 SERVICES,PROGRAMMES,FUNDACAO ARTHUR BERNARDES - FUNARBE,478206,93521.37,-
BEIS,Met Office,2023-04-19,11 SERVICES,PROGRAMMES,FUNDACAO ARTHUR BERNARDES - FUNARBE,478652,150217.74,-
BEIS,Met Office,2023-04-19,11 SERVICES,PROGRAMMES,FUNDACAO ARTHUR BERNARDES - FUNARBE,478652,234102.98,-
BEIS,Met Office,2023-04-19,11 SERVICES,PROGRAMMES,FUNDACAO ARTHUR BERNARDES - FUNARBE,478652,665000,-
BEIS,Met Office,2023-04-04,11 SERVICES,PROGRAMMES,GLOBAL ACTION PLAN,478067,2250,GB 625 994 009
BEIS,Met Office,2023-04-04,11 SERVICES,PROGRAMMES,GLOBAL ACTION PLAN,478067,77030,GB 625 994 009
BEIS,Met Office,2023-04-25,11 SERVICES,PROGRAMMES,HOGAN LOVELLS INTERNATIONAL LLP,478565,12332.37,GB123371543
BEIS,Met Office,2023-04-25,11 SERVICES,PROGRAMMES,HOGAN LOVELLS INTERNATIONAL LLP,478565,12907.79,GB123371543
BEIS,Met Office,2023-04-11,11 SERVICES,PROGRAMMES,"IBL SOFTWARE ENGINEERING, SPOL S.R.O.",477678,136470,SK2020241883
BEIS,Met Office,2023-04-04,11 SERVICES,PROGRAMMES,"K F LEWIN CONSULTING, LLC",10986,4658.44,-
BEIS,Met Office,2023-04-25,11 SERVICES,PROGRAMMES,LAUGHING PHOENIX LTD,478889,1200,989 4469 37
BEIS,Met Office,2023-04-06,11 SERVICES,PROGRAMMES,MADE TECH,478269,110725,938565184
BEIS,Met Office,2023-04-19,11 SERVICES,PROGRAMMES,MAURITIUS METEOROLOGICAL SOCIETY,477501,2000,-
BEIS,Met Office,2023-04-19,11 SERVICES,PROGRAMMES,NIGER MET SERVICES,478616,19000,-
BEIS,Met Office,2023-04-04,11 SERVICES,PROGRAMMES,NORWEGIAN REFUGEE COUNCIL,478020,33276.6,-
BEIS,Met Office,2023-04-17,11 SERVICES,PROGRAMMES,Npl Management Ltd,478639,58000,207523388
BEIS,Met Office,2023-04-14,PLANT AND EQUIPMENT,PROGRAMMES,PZ&W LTD,478447,3864,684 6795 68
BEIS,Met Office,2023-04-05,11 SERVICES,PROGRAMMES,ROBIN�S TRADING COMPANY LTD,478103,12450,384909158
BEIS,Met Office,2023-04-04,11 SERVICES,PROGRAMMES,ROTHAMSTED RESEARCH LIMITED,478186,57547,197420151
BEIS,Met Office,2023-04-05,11 SERVICES,PROGRAMMES,ROWE IT LTD,478126,492.6,924964394
BEIS,Met Office,2023-04-04,11 SERVICES,PROGRAMMES,ROWE IT LTD,478125,1234.1,924964394
BEIS,Met Office,2023-04-05,11 SERVICES,PROGRAMMES,ROWE IT LTD,478126,1724.12,924964394
BEIS,Met Office,2023-04-05,11 SERVICES,PROGRAMMES,ROWE IT LTD,478126,1768.14,924964394
BEIS,Met Office,2023-04-05,11 SERVICES,PROGRAMMES,ROWE IT LTD,478126,3078.27,924964394
BEIS,Met Office,2023-04-05,11 SERVICES,PROGRAMMES,ROWE IT LTD,478126,3079.27,924964394
BEIS,Met Office,2023-04-05,11 SERVICES,PROGRAMMES,ROWE IT LTD,478126,3940.83,924964394
BEIS,Met Office,2023-04-04,11 SERVICES,PROGRAMMES,ROWE IT LTD,478125,4319.35,924964394
BEIS,Met Office,2023-04-05,11 SERVICES,PROGRAMMES,ROWE IT LTD,478126,6012.55,924964394
BEIS,Met Office,2023-04-05,11 SERVICES,PROGRAMMES,ROWE IT LTD,478126,6188.49,924964394
BEIS,Met Office,2023-04-04,11 SERVICES,PROGRAMMES,ROWE IT LTD,478125,7713.12,924964394
BEIS,Met Office,2023-04-04,11 SERVICES,PROGRAMMES,ROWE IT LTD,478125,7713.13,924964394
BEIS,Met Office,2023-04-04,11 SERVICES,PROGRAMMES,ROWE IT LTD,478125,9872.8,924964394
BEIS,Met Office,2023-04-05,11 SERVICES,PROGRAMMES,ROWE IT LTD,478126,11050.88,924964394
BEIS,Met Office,2023-04-05,11 SERVICES,PROGRAMMES,ROWE IT LTD,478126,11050.88,924964394
BEIS,Met Office,2023-04-05,11 SERVICES,PROGRAMMES,ROWE IT LTD,478126,14145.13,924964394
BEIS,Met Office,2023-04-03,11 SERVICES,PROGRAMMES,ROWE IT LTD,478106,17250,924964394
BEIS,Met Office,2023-04-05,11 SERVICES,PROGRAMMES,ROWE IT LTD,478126,21043.92,924964394
BEIS,Met Office,2023-04-05,11 SERVICES,PROGRAMMES,ROWE IT LTD,478126,37577.94,924964394
BEIS,Met Office,2023-04-05,11 SERVICES,PROGRAMMES,ROWE IT LTD,478126,37578.94,924964394
BEIS,Met Office,2023-04-05,11 SERVICES,PROGRAMMES,ROWE IT LTD,478126,48100.4,924964394
BEIS,Met Office,2023-04-03,11 SERVICES,PROGRAMMES,ROWE IT LTD,478105,126312.5,924964394
BEIS,Met Office,2023-04-11,11 SERVICES,PROGRAMMES,Rwanda Meteorology Agency,478367,100000,103527135
BEIS,Met Office,2023-04-14,06 ACCOMMODATION,PROGRAMMES,SAFESTORE LTD,478403,909.61,722887607
BEIS,Met Office,2023-04-04,11 SERVICES,PROGRAMMES,SCIENCE & TECHNOLOGY FACILITIES COUNCIL,477952,16169.92,287461957
BEIS,Met Office,2023-04-20,11 SERVICES,PROGRAMMES,SCIENCE & TECHNOLOGY FACILITIES COUNCIL,478758,50000,287461957
BEIS,Met Office,2023-04-19,11 SERVICES,PROGRAMMES,UCAR INCOMING PAYMENTS,10985,5298.16,-
BEIS,Met Office,2023-04-20,11 SERVICES,PROGRAMMES,UK ATOMIC ENERGY AUTHORITY,478773,-166251.31,GB570101391
BEIS,Met Office,2023-04-20,11 SERVICES,PROGRAMMES,UK ATOMIC ENERGY AUTHORITY,478772,-76875,GB570101391
BEIS,Met Office,2023-04-05,11 SERVICES,PROGRAMMES,UK ATOMIC ENERGY AUTHORITY,478185,15000,GB570101391
BEIS,Met Office,2023-04-20,11 SERVICES,PROGRAMMES,UK ATOMIC ENERGY AUTHORITY,478762,30000,GB570101391
BEIS,Met Office,2023-04-20,11 SERVICES,PROGRAMMES,UK ATOMIC ENERGY AUTHORITY,478763,34737.65,GB570101391
BEIS,Met Office,2023-04-20,11 SERVICES,PROGRAMMES,UK ATOMIC ENERGY AUTHORITY,478849,76875,GB570101391
BEIS,Met Office,2023-04-20,11 SERVICES,PROGRAMMES,UK ATOMIC ENERGY AUTHORITY,478764,131513.66,GB570101391
BEIS,Met Office,2023-04-06,11 SERVICES,PROGRAMMES,UK ATOMIC ENERGY AUTHORITY,478226,134748.72,GB570101391
BEIS,Met Office,2023-04-20,11 SERVICES,PROGRAMMES,UK ATOMIC ENERGY AUTHORITY,478850,166251.31,GB570101391
BEIS,Met Office,2023-04-04,11 SERVICES,PROGRAMMES,UK CENTRE FOR ECOLOGY & HYDROLOGY (UKCEH),478129,2330,336940192
BEIS,Met Office,2023-04-04,11 SERVICES,PROGRAMMES,UK CENTRE FOR ECOLOGY & HYDROLOGY (UKCEH),478129,14599,336940192
BEIS,Met Office,2023-04-04,11 SERVICES,PROGRAMMES,UK CENTRE FOR ECOLOGY & HYDROLOGY (UKCEH),478127,44961.6,336940192
BEIS,Met Office,2023-04-25,11 SERVICES,PROGRAMMES,University Of Birmingham,478868,8250,729856187
BEIS,Met Office,2023-04-03,11 SERVICES,PROGRAMMES,University Of Durham,478104,118600,GB6755 42510
BEIS,Met Office,2023-04-24,11 SERVICES,PROGRAMMES,University Of Exeter,478832,500,142047795
BEIS,Met Office,2023-04-06,11 SERVICES,PROGRAMMES,University Of Exeter,478031,28655.82,142047795
BEIS,Met Office,2023-04-17,11 SERVICES,PROGRAMMES,University Of Exeter,478485,31919.15,142047795
BEIS,Met Office,2023-04-03,11 SERVICES,PROGRAMMES,University Of Exeter,478025,164944,142047795
BEIS,Met Office,2023-04-20,11 SERVICES,PROGRAMMES,University Of Oxford,478771,19999.9,125506730
BEIS,Met Office,2023-04-13,11 SERVICES,PROGRAMMES,University Of Reading,478610,-17802.19,200012659
BEIS,Met Office,2023-04-13,11 SERVICES,PROGRAMMES,University Of Reading,478611,17802.19,200012659
BEIS,Met Office,2023-04-14,11 SERVICES,PROGRAMMES,University Of Reading,478566,86261.5,200012659
BEIS,Met Office,2023-04-04,11 SERVICES,PROGRAMMES,University Of Reading,478165,97044.19,200012659
BEIS,Met Office,2023-04-04,11 SERVICES,PROGRAMMES,University Of Reading,478164,98620.8,200012659
BEIS,Met Office,2023-04-11,11 SERVICES,PROGRAMMES,University Of Southampton,477789,15000,568630414
BEIS,Met Office,2023-04-11,11 SERVICES,SCIENCE,Bureau Of Meteorology,477683,3527.66,-
BEIS,Met Office,2023-04-11,11 SERVICES,SCIENCE,Environment Canada,477507,938.37,-
BEIS,Met Office,2023-04-17,07 EQUIPMENT,SCIENCE,INSITE PORTABLE ACCOMMODATION,478647,210,122581045
BEIS,Met Office,2023-04-17,07 EQUIPMENT,SCIENCE,INSITE PORTABLE ACCOMMODATION,478647,425,122581045
BEIS,Met Office,2023-04-19,08 SOFTWARE LICENCES,SCIENCE,MATHWORKS LTD,478649,4668,700165584
BEIS,Met Office,2023-04-04,11 SERVICES,SCIENCE,National Oceanography Centre,24689,37179.19,GB 338 5487 64
BEIS,Met Office,2023-04-19,11 SERVICES,SCIENCE,SCIENCE & TECHNOLOGY FACILITIES COUNCIL,478642,-90000,287461957
BEIS,Met Office,2023-04-19,11 SERVICES,SCIENCE,SCIENCE & TECHNOLOGY FACILITIES COUNCIL,476965,90000,287461957
BEIS,Met Office,2023-04-19,11 SERVICES,SCIENCE,SCIENCE & TECHNOLOGY FACILITIES COUNCIL,478643,90000,287461957
BEIS,Met Office,2023-04-06,13 MISCELLANEOUS,SCIENCE,University Of East Anglia,478252,333.34,595183505
BEIS,Met Office,2023-04-21,11 SERVICES,SCIENCE,University of Edinburgh,478755,12500,592950700
BEIS,Met Office,2023-04-25,11 SERVICES,SCIENCE,University Of Exeter,471808,11872.53,142047795
BEIS,Met Office,2023-04-14,13 MISCELLANEOUS,SCIENCE,University Of Oxford,478582,333.33,125506730
BEIS,Met Office,2023-04-14,11 SERVICES,SCIENCE,University Of Oxford,478109,12500,125506730
BEIS,Met Office,2023-04-11,11 SERVICES,SERVICES,ADAM PHONES LTD,478338,88.35,538877093
BEIS,Met Office,2023-04-06,03 STAFF COSTS T&S,SERVICES,AIRPORT CAR RENTALS LTD,478251,320,-
BEIS,Met Office,2023-04-21,11 SERVICES,SERVICES,APPLIED SATELLITE TECHNOLOGY SYSTEMS LTD,478780,18.47,720108683
BEIS,Met Office,2023-04-21,11 SERVICES,SERVICES,APPLIED SATELLITE TECHNOLOGY SYSTEMS LTD,478779,25.09,720108683
BEIS,Met Office,2023-04-25,11 SERVICES,SERVICES,APPLIED SATELLITE TECHNOLOGY SYSTEMS LTD,478786,36.01,720108683
BEIS,Met Office,2023-04-21,11 SERVICES,SERVICES,APPLIED SATELLITE TECHNOLOGY SYSTEMS LTD,478789,36.94,720108683
BEIS,Met Office,2023-04-18,11 SERVICES,SERVICES,APPLIED SATELLITE TECHNOLOGY SYSTEMS LTD,478607,65.59,720108683
BEIS,Met Office,2023-04-25,11 SERVICES,SERVICES,APPLIED SATELLITE TECHNOLOGY SYSTEMS LTD,478781,74.22,720108683
BEIS,Met Office,2023-04-12,11 SERVICES,SERVICES,APPLIED SATELLITE TECHNOLOGY SYSTEMS LTD,476671,102.69,720108683
BEIS,Met Office,2023-04-12,11 SERVICES,SERVICES,APPLIED SATELLITE TECHNOLOGY SYSTEMS LTD,476708,109.07,720108683
BEIS,Met Office,2023-04-25,11 SERVICES,SERVICES,APPLIED SATELLITE TECHNOLOGY SYSTEMS LTD,478790,110.82,720108683
BEIS,Met Office,2023-04-21,11 SERVICES,SERVICES,APPLIED SATELLITE TECHNOLOGY SYSTEMS LTD,478778,119.12,720108683
BEIS,Met Office,2023-04-18,11 SERVICES,SERVICES,APPLIED SATELLITE TECHNOLOGY SYSTEMS LTD,478600,126.97,720108683
BEIS,Met Office,2023-04-20,11 SERVICES,SERVICES,APPLIED SATELLITE TECHNOLOGY SYSTEMS LTD,478787,127.44,720108683
BEIS,Met Office,2023-04-12,11 SERVICES,SERVICES,APPLIED SATELLITE TECHNOLOGY SYSTEMS LTD,473801,141.6,720108683
BEIS,Met Office,2023-04-18,11 SERVICES,SERVICES,APPLIED SATELLITE TECHNOLOGY SYSTEMS LTD,478599,191.6,720108683
BEIS,Met Office,2023-04-12,11 SERVICES,SERVICES,APPLIED SATELLITE TECHNOLOGY SYSTEMS LTD,476673,205.38,720108683
BEIS,Met Office,2023-04-12,11 SERVICES,SERVICES,APPLIED SATELLITE TECHNOLOGY SYSTEMS LTD,478536,217.09,720108683
BEIS,Met Office,2023-04-20,11 SERVICES,SERVICES,APPLIED SATELLITE TECHNOLOGY SYSTEMS LTD,478784,364.84,720108683
BEIS,Met Office,2023-04-20,11 SERVICES,SERVICES,APPLIED SATELLITE TECHNOLOGY SYSTEMS LTD,478782,1694.15,720108683
BEIS,Met Office,2023-04-19,11 SERVICES,SERVICES,APPLIED SATELLITE TECHNOLOGY SYSTEMS LTD,478768,1976.96,720108683
BEIS,Met Office,2023-04-20,11 SERVICES,SERVICES,APPLIED SATELLITE TECHNOLOGY SYSTEMS LTD,478785,1978.38,720108683
BEIS,Met Office,2023-04-18,11 SERVICES,SERVICES,APPLIED SATELLITE TECHNOLOGY SYSTEMS LTD,478715,2654.16,720108683
BEIS,Met Office,2023-04-20,11 SERVICES,SERVICES,APPLIED SATELLITE TECHNOLOGY SYSTEMS LTD,478788,5072.87,720108683
BEIS,Met Office,2023-04-17,11 SERVICES,SERVICES,APPLIED SATELLITE TECHNOLOGY SYSTEMS LTD,478601,5402,720108683
BEIS,Met Office,2023-04-11,11 SERVICES,SERVICES,ARNOLD CLARK FINANCE LIMITED,478359,1483.32,GB334331879
BEIS,Met Office,2023-04-06,11 SERVICES,SERVICES,Boc Ltd,477424,-24.7,226556555
BEIS,Met Office,2023-04-06,11 SERVICES,SERVICES,Boc Ltd,478154,24363.13,226556555
BEIS,Met Office,2023-04-24,11 SERVICES,SERVICES,Campbell Scientific Ltd,478753,30,428453933
BEIS,Met Office,2023-04-17,11 SERVICES,SERVICES,Campbell Scientific Ltd,478533,60,428453933
BEIS,Met Office,2023-04-24,10 EQUIPMENT MAINTENANCE,SERVICES,Campbell Scientific Ltd,478753,300,428453933
BEIS,Met Office,2023-04-17,10 EQUIPMENT MAINTENANCE,SERVICES,Campbell Scientific Ltd,478533,674.1,428453933
BEIS,Met Office,2023-04-17,10 EQUIPMENT MAINTENANCE,SERVICES,Campbell Scientific Ltd,478533,674.1,428453933
BEIS,Met Office,2023-04-17,10 EQUIPMENT MAINTENANCE,SERVICES,Campbell Scientific Ltd,478533,674.1,428453933
BEIS,Met Office,2023-04-17,10 EQUIPMENT MAINTENANCE,SERVICES,Campbell Scientific Ltd,478533,674.1,428453933
BEIS,Met Office,2023-04-04,07 EQUIPMENT,SERVICES,CASTLE MICROWAVE LTD,11015,7431.24,GB 491 7654 11
BEIS,Met Office,2023-04-05,03 STAFF COSTS T&S,SERVICES,CHARLIE'S TRAVEL LTD,478196,1374.5,783848277
BEIS,Met Office,2023-04-05,08 SOFTWARE LICENCES,SERVICES,CIVICA UK LIMITED,478160,11381.25,391171065
BEIS,Met Office,2023-04-14,11 SERVICES,SERVICES,CLOUDREACH EUROPE LIMITED,478614,7300,978187168
BEIS,Met Office,2023-04-06,08 SOFTWARE LICENCES,SERVICES,COGNIZANT WORLDWIDE LIMITED,477384,9977.25,123382928
BEIS,Met Office,2023-04-04,11 SERVICES,SERVICES,COLLECTE LOCALISATION SATELLITES (C.L.S.),24699,0.01,FR95338034390
BEIS,Met Office,2023-04-04,13 MISCELLANEOUS,SERVICES,COLLECTE LOCALISATION SATELLITES (C.L.S.),24700,166.75,FR95338034390
BEIS,Met Office,2023-04-04,11 SERVICES,SERVICES,COLLECTE LOCALISATION SATELLITES (C.L.S.),24702,179.99,FR95338034390
BEIS,Met Office,2023-04-04,11 SERVICES,SERVICES,COLLECTE LOCALISATION SATELLITES (C.L.S.),24699,4852.6,FR95338034390
BEIS,Met Office,2023-04-04,11 SERVICES,SERVICES,COLLECTE LOCALISATION SATELLITES (C.L.S.),24701,12847.41,FR95338034390
BEIS,Met Office,2023-04-20,11 SERVICES,SERVICES,COMPUTACENTER (UK) LTD,478837,1,490334648
BEIS,Met Office,2023-04-06,11 SERVICES,SERVICES,COMPUTACENTER (UK) LTD,478262,1260.66,490334648
BEIS,Met Office,2023-04-20,11 SERVICES,SERVICES,COMPUTACENTER (UK) LTD,478812,17999,490334648
BEIS,Met Office,2023-04-26,10 EQUIPMENT MAINTENANCE,SERVICES,DEUTSCHE WINDGUARD WIND TUNNEL SERVICES GMBH,24776,17.71,DE225152482
BEIS,Met Office,2023-04-26,10 EQUIPMENT MAINTENANCE,SERVICES,DEUTSCHE WINDGUARD WIND TUNNEL SERVICES GMBH,24776,44.29,DE225152482
BEIS,Met Office,2023-04-26,10 EQUIPMENT MAINTENANCE,SERVICES,DEUTSCHE WINDGUARD WIND TUNNEL SERVICES GMBH,24776,4782.82,DE225152482
BEIS,Met Office,2023-04-11,11 SERVICES,SERVICES,DOT SOFTWARE LTD,478327,27,701022805
BEIS,Met Office,2023-04-11,11 SERVICES,SERVICES,DOT SOFTWARE LTD,478327,930,701022805
BEIS,Met Office,2023-04-11,11 SERVICES,SERVICES,DOT SOFTWARE LTD,478327,1380,701022805
BEIS,Met Office,2023-04-04,11 SERVICES,SERVICES,DOT SOFTWARE LTD,478071,1960,701022805
BEIS,Met Office,2023-04-11,11 SERVICES,SERVICES,DOT SOFTWARE LTD,478327,7140,701022805
BEIS,Met Office,2023-04-25,03 STAFF COSTS T&S,SERVICES,FALKLAND ISLAND COMPANY LTD,479023,700,N/A
BEIS,Met Office,2023-04-25,03 STAFF COSTS T&S,SERVICES,FALKLAND ISLAND COMPANY LTD,479024,700,N/A
BEIS,Met Office,2023-04-25,03 STAFF COSTS T&S,SERVICES,FALKLAND ISLAND COMPANY LTD,479025,700,N/A
BEIS,Met Office,2023-04-17,03 STAFF COSTS T&S,SERVICES,FALKLAND ISLAND COMPANY LTD,478573,783,N/A
BEIS,Met Office,2023-04-17,03 STAFF COSTS T&S,SERVICES,FALKLAND ISLAND COMPANY LTD,478573,1317,N/A
BEIS,Met Office,2023-04-14,STOCK,SERVICES,Fisher Scientific Uk Ltd,478300,0,844290424
BEIS,Met Office,2023-04-25,STOCK,SERVICES,Fisher Scientific Uk Ltd,478569,0,844290424
BEIS,Met Office,2023-04-14,TRADE CREDITORS,SERVICES,Fisher Scientific Uk Ltd,478300,1082.4,844290424
BEIS,Met Office,2023-04-25,TRADE CREDITORS,SERVICES,Fisher Scientific Uk Ltd,478569,1869.6,844290424
BEIS,Met Office,2023-04-14,11 SERVICES,SERVICES,GAMMA TELECOM LTD,478593,4656.98,823820344
BEIS,Met Office,2023-04-03,03 STAFF COSTS T&S,SERVICES,HCR LTD,475828,1634.58,733 7205 46
BEIS,Met Office,2023-04-27,06 ACCOMMODATION,SERVICES,HEADWAY DEVON,473754,70,N/A
BEIS,Met Office,2023-04-06,11 SERVICES,SERVICES,HITACHI CAPITAL VEHICLE SOLUTIONS,478263,3387.36,GB 823 8248 22
BEIS,Met Office,2023-04-06,INFORMATION TECHNOLOGY,SERVICES,INMARSAT SOLUTIONS (CANADA) INC,478122,44.72,766144223
BEIS,Met Office,2023-04-06,INFORMATION TECHNOLOGY,SERVICES,INMARSAT SOLUTIONS (CANADA) INC,478123,44.72,766144223
BEIS,Met Office,2023-04-06,INFORMATION TECHNOLOGY,SERVICES,INMARSAT SOLUTIONS (CANADA) INC,478120,89.44,766144223
BEIS,Met Office,2023-04-06,11 SERVICES,SERVICES,MADE TECH,478270,307112.5,938565184
BEIS,Met Office,2023-04-19,11 SERVICES,SERVICES,NSSL GLOBAL LTD,11003,57.4,725151948
BEIS,Met Office,2023-04-19,11 SERVICES,SERVICES,NSSL GLOBAL LTD,11002,73.79,725151948
BEIS,Met Office,2023-04-04,11 SERVICES,SERVICES,OCEANIC ASSISTANCE,24732,7463.36,FR 51891653016
BEIS,Met Office,2023-04-24,11 SERVICES,SERVICES,REDACTED � PERSONAL DATA,478888,130.24,-
BEIS,Met Office,2023-04-04,13 MISCELLANEOUS,SERVICES,Royal Meteorological Society,478207,463,-
BEIS,Met Office,2023-04-14,11 SERVICES,SERVICES,SOFTWIRE TECHNOLOGY LIMITED,478494,4200,752 1253 57
BEIS,Met Office,2023-04-11,11 SERVICES,SERVICES,THE STRENGTHS PEOPLE LTD,478451,1850,206868488
BEIS,Met Office,2023-04-26,11 SERVICES,SERVICES,Trinity House,477411,1862.1,243120414
BEIS,Met Office,2023-04-26,11 SERVICES,SERVICES,Trinity House,478960,1862.1,243120414
BEIS,Met Office,2023-04-19,STOCK,SERVICES,VAISALA LTD,24728,0,336100011
BEIS,Met Office,2023-04-19,STOCK,SERVICES,VAISALA LTD,24729,0,336100011
BEIS,Met Office,2023-04-19,STOCK,SERVICES,VAISALA LTD,24766,0,336100011
BEIS,Met Office,2023-04-19,TRADE CREDITORS,SERVICES,VAISALA LTD,24728,2954.28,336100011
BEIS,Met Office,2023-04-19,TRADE CREDITORS,SERVICES,VAISALA LTD,24729,6120.37,336100011
BEIS,Met Office,2023-04-19,TRADE CREDITORS,SERVICES,VAISALA LTD,24766,9372.42,336100011
BEIS,Met Office,2023-04-04,13 MISCELLANEOUS,SERVICES,WORDENTEC LTD,478132,50,790895963
BEIS,Met Office,2023-04-04,10 EQUIPMENT MAINTENANCE,SERVICES,WORDENTEC LTD,478132,468.75,790895963
BEIS,Met Office,2023-04-21,13 MISCELLANEOUS,SERVICES,YOUNG CALIBRATION LIMITED,478836,15,673900720
BEIS,Met Office,2023-04-26,13 MISCELLANEOUS,SERVICES,YOUNG CALIBRATION LIMITED,478979,15,673900720
BEIS,Met Office,2023-04-21,10 EQUIPMENT MAINTENANCE,SERVICES,YOUNG CALIBRATION LIMITED,478836,1500,673900720
BEIS,Met Office,2023-04-26,10 EQUIPMENT MAINTENANCE,SERVICES,YOUNG CALIBRATION LIMITED,478979,1500,673900720
BEIS,Met Office,2023-04-19,11 SERVICES,TECHNOLOGY AND CIO,AKAMAI TECHNOLOGIES LTD,477152,4921.28,745091237
BEIS,Met Office,2023-04-19,11 SERVICES,TECHNOLOGY AND CIO,AKAMAI TECHNOLOGIES LTD,478267,4921.28,745091237
BEIS,Met Office,2023-04-19,11 SERVICES,TECHNOLOGY AND CIO,AKAMAI TECHNOLOGIES LTD,477152,25836.75,745091237
BEIS,Met Office,2023-04-19,11 SERVICES,TECHNOLOGY AND CIO,AKAMAI TECHNOLOGIES LTD,478267,25836.75,745091237
BEIS,Met Office,2023-04-19,11 SERVICES,TECHNOLOGY AND CIO,AMAZON WEB SERVICES EMEA SARL,11023,1237.4,GB 283644382
BEIS,Met Office,2023-04-19,11 SERVICES,TECHNOLOGY AND CIO,AMAZON WEB SERVICES EMEA SARL,10989,18734.62,GB 283644382
BEIS,Met Office,2023-04-19,11 SERVICES,TECHNOLOGY AND CIO,AMAZON WEB SERVICES EMEA SARL,10989,235452.77,GB 283644382
BEIS,Met Office,2023-04-19,11 SERVICES,TECHNOLOGY AND CIO,AMAZON WEB SERVICES EMEA SARL,11022,261025.58,GB 283644382
BEIS,Met Office,2023-04-04,11 SERVICES,TECHNOLOGY AND CIO,AMAZON WEB SERVICES INC.,10981,13.04,N/A
BEIS,Met Office,2023-04-14,03 STAFF COSTS T&S,TECHNOLOGY AND CIO,BAE SYSTEMS APPLIED INTELLIGENCE LIMITED,478436,28.21,GB641407169
BEIS,Met Office,2023-04-06,11 SERVICES,TECHNOLOGY AND CIO,BAE SYSTEMS APPLIED INTELLIGENCE LIMITED,478273,930.64,GB641407169
BEIS,Met Office,2023-04-14,11 SERVICES,TECHNOLOGY AND CIO,BAE SYSTEMS APPLIED INTELLIGENCE LIMITED,478472,1876,GB641407169
BEIS,Met Office,2023-04-11,11 SERVICES,TECHNOLOGY AND CIO,BAE SYSTEMS APPLIED INTELLIGENCE LIMITED,478325,2637.38,GB641407169
BEIS,Met Office,2023-04-14,11 SERVICES,TECHNOLOGY AND CIO,BAE SYSTEMS APPLIED INTELLIGENCE LIMITED,478544,2814,GB641407169
BEIS,Met Office,2023-04-11,11 SERVICES,TECHNOLOGY AND CIO,BAE SYSTEMS APPLIED INTELLIGENCE LIMITED,478323,3300,GB641407169
BEIS,Met Office,2023-04-14,11 SERVICES,TECHNOLOGY AND CIO,BAE SYSTEMS APPLIED INTELLIGENCE LIMITED,478470,3752,GB641407169
BEIS,Met Office,2023-04-14,11 SERVICES,TECHNOLOGY AND CIO,BAE SYSTEMS APPLIED INTELLIGENCE LIMITED,478413,5815,GB641407169
BEIS,Met Office,2023-04-06,11 SERVICES,TECHNOLOGY AND CIO,BAE SYSTEMS APPLIED INTELLIGENCE LIMITED,478324,5962.5,GB641407169
BEIS,Met Office,2023-04-14,11 SERVICES,TECHNOLOGY AND CIO,BAE SYSTEMS APPLIED INTELLIGENCE LIMITED,478414,7507.5,GB641407169
BEIS,Met Office,2023-04-14,11 SERVICES,TECHNOLOGY AND CIO,BAE SYSTEMS APPLIED INTELLIGENCE LIMITED,478426,8662.5,GB641407169
BEIS,Met Office,2023-04-14,11 SERVICES,TECHNOLOGY AND CIO,BAE SYSTEMS APPLIED INTELLIGENCE LIMITED,478411,8943.75,GB641407169
BEIS,Met Office,2023-04-14,11 SERVICES,TECHNOLOGY AND CIO,BAE SYSTEMS APPLIED INTELLIGENCE LIMITED,478482,9000,GB641407169
BEIS,Met Office,2023-04-14,11 SERVICES,TECHNOLOGY AND CIO,BAE SYSTEMS APPLIED INTELLIGENCE LIMITED,478427,9618.75,GB641407169
BEIS,Met Office,2023-04-14,11 SERVICES,TECHNOLOGY AND CIO,BAE SYSTEMS APPLIED INTELLIGENCE LIMITED,478430,9731.25,GB641407169
BEIS,Met Office,2023-04-14,11 SERVICES,TECHNOLOGY AND CIO,BAE SYSTEMS APPLIED INTELLIGENCE LIMITED,478540,9731.25,GB641407169
BEIS,Met Office,2023-04-14,11 SERVICES,TECHNOLOGY AND CIO,BAE SYSTEMS APPLIED INTELLIGENCE LIMITED,478541,10143.75,GB641407169
BEIS,Met Office,2023-04-14,11 SERVICES,TECHNOLOGY AND CIO,BAE SYSTEMS APPLIED INTELLIGENCE LIMITED,478410,10820,GB641407169
BEIS,Met Office,2023-04-14,11 SERVICES,TECHNOLOGY AND CIO,BAE SYSTEMS APPLIED INTELLIGENCE LIMITED,478483,11090.5,GB641407169
BEIS,Met Office,2023-04-14,11 SERVICES,TECHNOLOGY AND CIO,BAE SYSTEMS APPLIED INTELLIGENCE LIMITED,478428,12443,GB641407169
BEIS,Met Office,2023-04-14,11 SERVICES,TECHNOLOGY AND CIO,BAE SYSTEMS APPLIED INTELLIGENCE LIMITED,478542,12443,GB641407169
BEIS,Met Office,2023-04-14,11 SERVICES,TECHNOLOGY AND CIO,BAE SYSTEMS APPLIED INTELLIGENCE LIMITED,478412,12540,GB641407169
BEIS,Met Office,2023-04-14,11 SERVICES,TECHNOLOGY AND CIO,BAE SYSTEMS APPLIED INTELLIGENCE LIMITED,478432,13035,GB641407169
BEIS,Met Office,2023-04-14,11 SERVICES,TECHNOLOGY AND CIO,BAE SYSTEMS APPLIED INTELLIGENCE LIMITED,478429,13447.5,GB641407169
BEIS,Met Office,2023-04-14,11 SERVICES,TECHNOLOGY AND CIO,BAE SYSTEMS APPLIED INTELLIGENCE LIMITED,478538,14932.5,GB641407169
BEIS,Met Office,2023-04-14,11 SERVICES,TECHNOLOGY AND CIO,BAE SYSTEMS APPLIED INTELLIGENCE LIMITED,478539,15180,GB641407169
BEIS,Met Office,2023-04-14,11 SERVICES,TECHNOLOGY AND CIO,BAE SYSTEMS APPLIED INTELLIGENCE LIMITED,478433,15345,GB641407169
BEIS,Met Office,2023-04-14,11 SERVICES,TECHNOLOGY AND CIO,BAE SYSTEMS APPLIED INTELLIGENCE LIMITED,478416,15675,GB641407169
BEIS,Met Office,2023-04-14,11 SERVICES,TECHNOLOGY AND CIO,BAE SYSTEMS APPLIED INTELLIGENCE LIMITED,478415,15757.5,GB641407169
BEIS,Met Office,2023-04-14,11 SERVICES,TECHNOLOGY AND CIO,BAE SYSTEMS APPLIED INTELLIGENCE LIMITED,478431,15839.84,GB641407169
BEIS,Met Office,2023-04-27,11 SERVICES,TECHNOLOGY AND CIO,BAE SYSTEMS APPLIED INTELLIGENCE LIMITED,478468,16415,GB641407169
BEIS,Met Office,2023-04-14,11 SERVICES,TECHNOLOGY AND CIO,BAE SYSTEMS APPLIED INTELLIGENCE LIMITED,478537,16500,GB641407169
BEIS,Met Office,2023-04-14,11 SERVICES,TECHNOLOGY AND CIO,BAE SYSTEMS APPLIED INTELLIGENCE LIMITED,478543,17587.5,GB641407169
BEIS,Met Office,2023-04-14,11 SERVICES,TECHNOLOGY AND CIO,BAE SYSTEMS APPLIED INTELLIGENCE LIMITED,478420,17822,GB641407169
BEIS,Met Office,2023-04-14,11 SERVICES,TECHNOLOGY AND CIO,BAE SYSTEMS APPLIED INTELLIGENCE LIMITED,478473,17939.25,GB641407169
BEIS,Met Office,2023-04-11,11 SERVICES,TECHNOLOGY AND CIO,BAE SYSTEMS APPLIED INTELLIGENCE LIMITED,478322,18525.5,GB641407169
BEIS,Met Office,2023-04-14,11 SERVICES,TECHNOLOGY AND CIO,BAE SYSTEMS APPLIED INTELLIGENCE LIMITED,478471,19762.5,GB641407169
BEIS,Met Office,2023-04-17,11 SERVICES,TECHNOLOGY AND CIO,BAE SYSTEMS APPLIED INTELLIGENCE LIMITED,478644,20636,GB641407169
BEIS,Met Office,2023-04-14,11 SERVICES,TECHNOLOGY AND CIO,BAE SYSTEMS APPLIED INTELLIGENCE LIMITED,478484,20870.5,GB641407169
BEIS,Met Office,2023-04-14,11 SERVICES,TECHNOLOGY AND CIO,BAE SYSTEMS APPLIED INTELLIGENCE LIMITED,478480,21339.5,GB641407169
BEIS,Met Office,2023-04-14,11 SERVICES,TECHNOLOGY AND CIO,BAE SYSTEMS APPLIED INTELLIGENCE LIMITED,478481,22512,GB641407169
BEIS,Met Office,2023-04-14,11 SERVICES,TECHNOLOGY AND CIO,BAE SYSTEMS APPLIED INTELLIGENCE LIMITED,478419,23450,GB641407169
BEIS,Met Office,2023-04-14,11 SERVICES,TECHNOLOGY AND CIO,BAE SYSTEMS APPLIED INTELLIGENCE LIMITED,478469,26749,GB641407169
BEIS,Met Office,2023-04-14,13 MISCELLANEOUS,TECHNOLOGY AND CIO,"BCS, THE CHARTERED INSTITUTE FOR IT",478326,13900,GB18168724
BEIS,Met Office,2023-04-14,11 SERVICES,TECHNOLOGY AND CIO,BJSS LIMITED,478455,14211,613295452
BEIS,Met Office,2023-04-14,11 SERVICES,TECHNOLOGY AND CIO,BJSS LIMITED,478497,88008,613295452
BEIS,Met Office,2023-04-25,07 EQUIPMENT,TECHNOLOGY AND CIO,BOXXE,478985,9884,734245248
BEIS,Met Office,2023-04-28,11 SERVICES,TECHNOLOGY AND CIO,CLOUDREACH EUROPE LIMITED,478615,1207.46,978187168
BEIS,Met Office,2023-04-28,11 SERVICES,TECHNOLOGY AND CIO,CLOUDREACH EUROPE LIMITED,478615,2527,978187168
BEIS,Met Office,2023-04-17,11 SERVICES,TECHNOLOGY AND CIO,CLOUDREACH EUROPE LIMITED,478613,5150,978187168
BEIS,Met Office,2023-04-20,11 SERVICES,TECHNOLOGY AND CIO,COMPUTACENTER (UK) LTD,478812,1,490334648
BEIS,Met Office,2023-04-04,10 EQUIPMENT MAINTENANCE,TECHNOLOGY AND CIO,COMPUTACENTER (UK) LTD,478137,1968.06,490334648
BEIS,Met Office,2023-04-04,07 EQUIPMENT,TECHNOLOGY AND CIO,COMPUTACENTER (UK) LTD,478140,1973.96,490334648
BEIS,Met Office,2023-04-19,08 SOFTWARE LICENCES,TECHNOLOGY AND CIO,COMPUTACENTER (UK) LTD,477986,3226.88,490334648
BEIS,Met Office,2023-04-24,11 SERVICES,TECHNOLOGY AND CIO,COMPUTACENTER (UK) LTD,478903,4398.79,490334648
BEIS,Met Office,2023-04-20,11 SERVICES,TECHNOLOGY AND CIO,COMPUTACENTER (UK) LTD,478837,248499,490334648
BEIS,Met Office,2023-04-25,08 SOFTWARE LICENCES,TECHNOLOGY AND CIO,CONVERGENCE (GROUP NETWORK) LTD,478950,15335.62,GB286 5378 54
BEIS,Met Office,2023-04-19,08 SOFTWARE LICENCES,TECHNOLOGY AND CIO,Digital.ai Software (UK) Ltd,478261,12272,228794369
BEIS,Met Office,2023-04-03,13 MISCELLANEOUS,TECHNOLOGY AND CIO,FIBRE TECHNOLOGIES LIMITED,478026,14,572640635
BEIS,Met Office,2023-04-03,13 MISCELLANEOUS,TECHNOLOGY AND CIO,FIBRE TECHNOLOGIES LIMITED,478027,14,572640635
BEIS,Met Office,2023-04-03,07 EQUIPMENT,TECHNOLOGY AND CIO,FIBRE TECHNOLOGIES LIMITED,478026,200.4,572640635
BEIS,Met Office,2023-04-03,07 EQUIPMENT,TECHNOLOGY AND CIO,FIBRE TECHNOLOGIES LIMITED,478027,282.78,572640635
BEIS,Met Office,2023-04-03,07 EQUIPMENT,TECHNOLOGY AND CIO,FIBRE TECHNOLOGIES LIMITED,478026,353.4,572640635
BEIS,Met Office,2023-04-03,07 EQUIPMENT,TECHNOLOGY AND CIO,FIBRE TECHNOLOGIES LIMITED,478026,353.4,572640635
BEIS,Met Office,2023-04-06,11 SERVICES,TECHNOLOGY AND CIO,FLYFORM LTD,478134,17910,237333808
BEIS,Met Office,2023-04-11,08 SOFTWARE LICENCES,TECHNOLOGY AND CIO,GOOGLE IRELAND LTD,478177,49.87,6388047V
BEIS,Met Office,2023-04-06,10 EQUIPMENT MAINTENANCE,TECHNOLOGY AND CIO,Hewlett Packard Ltd,478350,56209.96,314149679
BEIS,Met Office,2023-04-06,10 EQUIPMENT MAINTENANCE,TECHNOLOGY AND CIO,Hewlett Packard Ltd,478350,422131.47,314149679
BEIS,Met Office,2023-04-06,10 EQUIPMENT MAINTENANCE,TECHNOLOGY AND CIO,Hewlett Packard Ltd,478350,977601.57,314149679
BEIS,Met Office,2023-04-06,08 SOFTWARE LICENCES,TECHNOLOGY AND CIO,HUT 6 SECURITY LIMITED,478259,27040.55,277 2052 03
BEIS,Met Office,2023-04-04,08 SOFTWARE LICENCES,TECHNOLOGY AND CIO,Ibm United Kingdom Ltd,478176,7253.6,107328000
BEIS,Met Office,2023-04-24,08 SOFTWARE LICENCES,TECHNOLOGY AND CIO,Ibm United Kingdom Ltd,478934,11052,107328000
BEIS,Met Office,2023-04-14,11 SERVICES,TECHNOLOGY AND CIO,Ibm United Kingdom Ltd,478152,13440.5,107328000
BEIS,Met Office,2023-04-14,08 SOFTWARE LICENCES,TECHNOLOGY AND CIO,IP PERFORMANCE LTD,478317,360,650541851
BEIS,Met Office,2023-04-27,11 SERVICES,TECHNOLOGY AND CIO,LRQA LTD,479020,8160,821176647
BEIS,Met Office,2023-04-06,11 SERVICES,TECHNOLOGY AND CIO,Microsoft Ltd,478228,89981,724594615
BEIS,Met Office,2023-04-03,11 SERVICES,TECHNOLOGY AND CIO,NEXUS OPEN SYSTEMS LTD,478068,25170,723221673
BEIS,Met Office,2023-04-28,08 SOFTWARE LICENCES,TECHNOLOGY AND CIO,OPEN TEXT UK LTD,479073,3277.33,837871308
BEIS,Met Office,2023-04-14,10 EQUIPMENT MAINTENANCE,TECHNOLOGY AND CIO,ORACLE CORPORATION UK LTD,478605,6733.09,391313073
BEIS,Met Office,2023-04-11,10 EQUIPMENT MAINTENANCE,TECHNOLOGY AND CIO,ORACLE CORPORATION UK LTD,478408,16430.76,391313073
BEIS,Met Office,2023-04-14,10 EQUIPMENT MAINTENANCE,TECHNOLOGY AND CIO,ORACLE CORPORATION UK LTD,478575,16430.76,391313073
BEIS,Met Office,2023-04-20,10 EQUIPMENT MAINTENANCE,TECHNOLOGY AND CIO,ORACLE CORPORATION UK LTD,478833,20570.43,391313073
BEIS,Met Office,2023-04-26,10 EQUIPMENT MAINTENANCE,TECHNOLOGY AND CIO,ORACLE CORPORATION UK LTD,479021,29547.32,391313073
BEIS,Met Office,2023-04-11,10 EQUIPMENT MAINTENANCE,TECHNOLOGY AND CIO,ORACLE CORPORATION UK LTD,478409,46897.6,391313073
BEIS,Met Office,2023-04-24,11 SERVICES,TECHNOLOGY AND CIO,QA LTD,478835,34630,864455303
BEIS,Met Office,2023-04-14,08 SOFTWARE LICENCES,TECHNOLOGY AND CIO,SITEMORSE (UK SALES) LTD,478604,12045,928339691
BEIS,Met Office,2023-04-14,INFORMATION TECHNOLOGY,TECHNOLOGY AND CIO,SPECIALIST COMPUTER CENTRES,478588,9672.31,313651680
BEIS,Met Office,2023-04-04,11 SERVICES,TECHNOLOGY AND CIO,SPECIALIST COMPUTER CENTRES,478032,9966.47,313651680
BEIS,Met Office,2023-04-21,11 SERVICES,TECHNOLOGY AND CIO,SPECIALIST COMPUTER CENTRES,478834,23601.17,313651680
BEIS,Met Office,2023-04-20,11 SERVICES,TECHNOLOGY AND CIO,SSE CONTRACTING LTD,478825,10912.87,382894546
BEIS,Met Office,2023-04-06,11 SERVICES,TECHNOLOGY AND CIO,SYNTHESYS SYSTEMS ENGINEERS LTD,478328,1857.6,499309492
BEIS,Met Office,2023-04-04,11 SERVICES,TECHNOLOGY AND CIO,WIREFAST LTD,478114,863.61,749536001
BEIS,Met Office,2023-04-04,11 SERVICES,TECHNOLOGY AND CIO,WIREFAST LTD,478112,1575.85,749536001
BEIS,Met Office,2023-04-04,11 SERVICES,TECHNOLOGY AND CIO,WIREFAST LTD,478113,1806.86,749536001
BEIS,Met Office,2023-04-28,11 SERVICES,TECHNOLOGY AND CIO,WT CONSULTANCY (SW) LTD,479053,2450,223 4662 25
